fUSD/lending_fUSD_20240226
["ID","MTS","AMOUNT","RATE_DAILY","PERIOD"]
[315180091,1708907438551,-150.0,0.00022,2]
[315180092,1708907438560,-14869.55382573,0.00022,2]
[315180093,1708907438569,-299.301198,0.00022005,2]
[315180094,1708907438579,-500.0,0.00022005,2]
[315180095,1708907438589,-500.0,0.00022005,2]
[315180096,1708907438600,-336.94,0.00022033,2]
[315180097,1708907438610,-153.53957034,0.00022045,2]
[315180098,1708907438619,-1337.02890901,0.00022061,2]
[315180099,1708907438628,-1000.0,0.00022089,2]
[315180100,1708907438637,-150.0,0.00022133,2]
[315180102,1708907438646,-336.94,0.00022149,2]
[315180104,1708907438655,-2766.27640019,0.00022193,2]
[315180106,1708907438664,-153.53957034,0.00022216,2]
[315180108,1708907438673,-2500.0,0.00022222,2]
[315180110,1708907438682,-1337.02890901,0.00022239,2]
[315180112,1708907438691,-336.94,0.00022264,2]
[315180114,1708907438700,-206.0,0.00022376,2]
[315180116,1708907438709,-336.94,0.00022379,2]
[315180117,1708907438718,-153.53957034,0.00022387,2]
[315180119,1708907438727,-956.85,0.00022392,2]
[315180121,1708907438736,-1337.02890901,0.00022417,2]
[315180124,1708907438745,-150.0,0.00022444,2]
[315180125,1708907438754,-336.94,0.00022495,2]
[315180127,1708907438763,-193.02738789,0.00022544,2]
[315180129,1708907438773,-508.60850008,0.00022548,2]
[315180131,1708907438782,-413.26,0.00022553,2]
[315180134,1708907438792,-153.53957034,0.00022558,2]
[315180135,1708907438801,-1337.02890901,0.00022594,2]
[315180138,1708907438810,-898.37,0.000226,2]
[315180140,1708907438820,-336.94,0.0002261,2]
[315180142,1708907438829,-1500.0,0.00022711,2]
[315180144,1708907438838,-150.0,0.00022712,2]
[315180146,1708907438847,-150.0,0.00022717,2]
[315180148,1708907438858,-150.0,0.00022718,2]
[315180150,1708907438867,-150.0,0.00022725,2]
[315180152,1708907438877,-336.94,0.00022725,2]
[315180154,1708907438886,-150.0,0.00022728,2]
[315180156,1708907438895,-153.53957034,0.00022729,2]
[315180158,1708907438904,-150.0,0.0002273,2]
[315180160,1708907438912,-150.0,0.00022732,2]
[315180162,1708907438921,-200000.0,0.00022732,2]
[315180164,1708907438931,-150.0,0.00022737,2]
[315180165,1708907438940,-150.0,0.00022743,2]
[315180167,1708907438949,-150.0,0.00022743,2]
[315180169,1708907438958,-150.0,0.00022748,2]
[315180171,1708907438967,-150.0,0.00022753,2]
[315180174,1708907438977,-150.0,0.00022756,2]
[315180175,1708907438985,-150.0,0.00022757,2]
[315180177,1708907438994,-150.0,0.00022758,2]
[315180179,1708907439003,-150.0,0.00022763,2]
[315180181,1708907439012,-150.0,0.00022764,2]
[315180183,1708907439021,-150.0,0.0002277,2]
[315180186,1708907439031,-1337.02890901,0.00022772,2]
[315180187,1708907439040,-150.0,0.00022772,2]
[315180190,1708907439049,-150.0,0.00022781,2]
[315180191,1708907439058,-254.047546,0.00022783,2]
[315180214,1708907439254,-150.0,0.00022789,2]
[315180216,1708907439264,-150.0,0.00022789,2]
[315180218,1708907439273,-150.0,0.0002279,2]
[315180220,1708907439282,-244.24766075,0.00022793,2]
[315180222,1708907439291,-150.0,0.00022793,2]
[315180224,1708907439300,-150.0,0.00022797,2]
[315180226,1708907439308,-150.0,0.00022798,2]
[315180229,1708907439318,-150.0,0.00022803,2]
[315180230,1708907439327,-800.0,0.00022815,2]
[315180232,1708907439336,-200.0,0.00022815,2]
[315180234,1708907439345,-800.0,0.00022816,2]
[315180236,1708907439355,-200.0,0.00022816,2]
[315180238,1708907439365,-500.0,0.00022816,2]
[315180240,1708907439374,-150.0,0.00022817,2]
[315180242,1708907439383,-150.0,0.00022819,2]
[315180244,1708907439393,-150.0,0.0002282,2]
[315180246,1708907439401,-1500.0,0.00022831,2]
[315180248,1708907439411,-150.0,0.00022831,2]
[315180250,1708907439420,-150.0,0.00022838,2]
[315180252,1708907439429,-150.0,0.00022839,2]
[315180255,1708907439438,-336.94,0.00022841,2]
[315180257,1708907439447,-150.0,0.00022844,2]
[315180259,1708907439457,-150.0,0.00022847,2]
[315180261,1708907439466,-150.0,0.00022872,2]
[315180263,1708907439474,-150.0,0.00022874,2]
[315180265,1708907439483,-150.0,0.00022885,2]
[315180267,1708907439493,-1500.0,0.00022886,2]
[315180269,1708907439505,-150.0,0.0002289,2]
[315180271,1708907439513,-150.0,0.00022895,2]
[315180273,1708907439523,-150.0,0.00022897,2]
[315180275,1708907439532,-213.30730273,0.000229,2]
[315180277,1708907439541,-60950.0446,0.000229,2]
[315180279,1708907439550,-153.53957034,0.000229,2]
[315180281,1708907439559,-201.9883,0.000229,2]
[315180283,1708907439568,-367.21605428,0.000229,2]
[315180285,1708907439578,-3508.87833358,0.000229,2]
[315180286,1708907439587,-364.78054365,0.000229,2]
[315180289,1708907439596,-150.0,0.00022901,2]
[315180291,1708907439607,-150.0,0.00022904,2]
[315180293,1708907439615,-150.0,0.00022907,2]
[315180295,1708907439625,-150.0,0.00022916,2]
[315180296,1708907439634,-150.0,0.00022919,2]
[315180299,1708907439643,-150.0,0.0002292,2]
[315180301,1708907439652,-150.0,0.00022923,2]
[315180302,1708907439661,-1500.0,0.00022925,2]
[315180304,1708907439670,-150.0,0.00022927,2]
[315180306,1708907439679,-150.0,0.00022932,2]
[315180308,1708907439688,-150.0,0.00022936,2]
[315180311,1708907439697,-150.0,0.00022937,2]
[315180313,1708907439706,-150.0,0.00022937,2]
[315180315,1708907439715,-150.0,0.00022937,2]
[315180317,1708907439725,-150.0,0.00022949,2]
[315180319,1708907439734,-1337.02890901,0.00022949,2]
[315180321,1708907439745,-336.94,0.00022956,2]
[315180323,1708907439754,-150.0,0.00022958,2]
[315180325,1708907439764,-150.0,0.00022961,2]
[315180327,1708907439773,-150.0,0.00022966,2]
[315180329,1708907439782,-150.0,0.0002297,2]
[315180331,1708907439791,-150.0,0.00022971,2]
[315180333,1708907439800,-150.0,0.00022973,2]
[315180335,1708907439809,-150.0,0.00022977,2]
[315180338,1708907439830,-150.0,0.0002298,2]
[315180340,1708907439841,-150.0,0.00022981,2]
[315180342,1708907439851,-500.0,0.00022983,2]
[315180344,1708907439861,-500.0,0.00022983,2]
[315180346,1708907439870,-500.0,0.00022983,2]
[315180348,1708907439880,-500.0,0.00022983,2]
[315180350,1708907439889,-500.0,0.00022983,2]
[315180352,1708907439899,-647.68,0.00022984,2]
[315180354,1708907439909,-150.0,0.00022984,2]
[315180357,1708907439918,-64543.701779,0.00022986,2]
[315180359,1708907439929,-150.0,0.00022987,2]
[315180361,1708907439939,-221.99073488,0.0002299,2]
[315180363,1708907439948,-500.0,0.00022997,2]
[315180365,1708907439958,-500.0,0.00022997,2]
[315180367,1708907439968,-781733.09752643,0.00022997,2]
[315180382,1708907440098,-0.02110038,0.00022997,2]
[315180410,1708907440297,-791112.14322734,0.00022997,2]
[315180437,1708907440536,-166940.79153447,0.00022997,2]
[315180439,1708907440548,-2028.4473159,0.00022997,2]
[315180442,1708907440561,-704.0263862,0.00022997,2]
[315180444,1708907440577,-1064.8,0.00022997,2]
[315180447,1708907440589,-2933.2930339,0.00022997,2]
[315180682,1708907442767,-1188.48150201,0.00022486,2]
[315180685,1708907442779,-1083.83746,0.00022486,2]
[315180691,1708907442825,-390.9763382,0.00022486,2]
[315180693,1708907442837,-102.98109998,0.00022486,2]
[315180695,1708907442846,-577.08990042,0.00022997,2]
[315180700,1708907442883,-6674.60640633,0.00022997,2]
[315180725,1708907443113,-479219.12064688,0.00022997,2]
[315180727,1708907443122,-204.38214246,0.00022998,2]
[315180729,1708907443131,-414.77976445,0.00022998,2]
[315180731,1708907443140,-157.24730753,0.00022998,2]
[315180733,1708907443149,-10183.370193,0.00022998,2]
[315180735,1708907443158,-557.26065719,0.00022998,2]
[315180737,1708907443167,-15494.83343246,0.00022998,2]
[315180739,1708907443177,-500.0,0.00022998,2]
[315180742,1708907443188,-430.42854931,0.00022999,2]
[315180744,1708907443197,-360.46102982,0.00022999,2]
[315180746,1708907443206,-193.86263835,0.00022999,2]
[315180748,1708907443215,-376.48504455,0.00022999,2]
[315180750,1708907443226,-500.0,0.00022999,2]
[315180752,1708907443235,-500.0,0.00022999,2]
[315180754,1708907443244,-500.0,0.00022999,2]
[315180756,1708907443254,-500.0,0.00022999,2]
[315180758,1708907443263,-500.0,0.00022999,2]
[315180761,1708907443272,-500.0,0.00022999,2]
[315180763,1708907443281,-433.90069129,0.00022999,2]
[315180765,1708907443290,-500.0,0.00022999,2]
[315180767,1708907443300,-500.0,0.00022999,2]
[315180769,1708907443309,-500.0,0.00022999,2]
[315180772,1708907443317,-500.0,0.00022999,2]
[315180775,1708907443327,-500.0,0.00022999,2]
[315180777,1708907443336,-500.0,0.00022999,2]
[315180779,1708907443347,-500.0,0.00022999,2]
[315180781,1708907443357,-500.0,0.00022999,2]
[315180783,1708907443366,-500.0,0.00022999,2]
[315180785,1708907443375,-500.0,0.00022999,2]
[315180787,1708907443384,-500.0,0.00022999,2]
[315180789,1708907443393,-500.0,0.00022999,2]
[315180791,1708907443402,-297.50499624,0.00022999,2]
[315180793,1708907443411,-1401997.53047577,0.00023,2]
[315180795,1708907443423,-7675.68543641,0.00023,2]
[315180798,1708907443434,-9285.6282024,0.00023,2]
[315180800,1708907443445,-5598.764225,0.00023,2]
[315181063,1708907448881,-500.0,0.00021917,2]
[315181064,1708907448891,-35.5599681,0.00021917,2]
[315181065,1708907448904,-268.4500319,0.00021917,2]
[315181066,1708907448913,-309.82938311,0.00021917,2]
[315181067,1708907448931,-190.17061689,0.00021917,2]
[315181068,1708907448941,-500.0,0.00021917,2]
[315181069,1708907448951,-500.0,0.00021917,2]
[315181070,1708907448960,-316.79,0.00021917,2]
[315181071,1708907448970,-2766.27640019,0.0002278,2]
[315181072,1708907448979,-923.52298052,0.00022996,2]
[315181073,1708907448992,-729.84447546,0.00022996,2]
[315181074,1708907449023,-6635.72203028,0.00022996,2]
[315181075,1708907449035,-640.77986146,0.00022996,2]
[315181076,1708907449056,-3785.72028405,0.00022996,2]
[315181077,1708907449155,-9691.76480598,0.00022996,2]
[315181078,1708907449167,-453.305439,0.00022996,2]
[315181079,1708907449178,-1272.6330076,0.00022996,2]
[315181080,1708907449190,-2003.52091637,0.00022996,2]
[315181081,1708907449200,-603.56514258,0.00022999,2]
[315181082,1708907449209,-4861.58415429,0.00023,2]
[315181083,1708907449221,-9331.5902129,0.00023,2]
[315181084,1708907449233,-1006.8,0.00023,2]
[315181085,1708907449244,-30020.55751714,0.00023,2]
[315181086,1708907449263,-1237.62,0.00023,2]
[315181087,1708907449275,-2196.67991751,0.00023,2]
[315181094,1708908003212,151.0,0.00026625,120]
[315181097,1708908415769,300.0,0.00023,24]
[315181098,1708908558409,550.52,0.0001975,2]
[315181111,1708908632004,-304.42271591,0.00021259,2]
[315181112,1708908632013,-500.0,0.0002126,2]
[315181113,1708908632022,-150.0,0.00021504,2]
[315181114,1708908632031,-432.30403896,0.00021505,2]
[315181115,1708908632042,-8903.13705788,0.00021505,2]
[315181116,1708908632053,-27725.08195263,0.00021505,2]
[315181117,1708908632063,-10807.4923,0.00021506,2]
[315181118,1708908632073,-761.73,0.00021623,2]
[315181119,1708908632083,-150.0,0.00021726,2]
[315181120,1708908632092,-180.1,0.00021733,2]
[315181121,1708908632102,-150.0,0.00021737,2]
[315181122,1708908632111,-637.9,0.00021742,2]
[315181123,1708908632120,-750.0,0.000219,2]
[315181124,1708908632129,-500.0,0.00021917,2]
[315181125,1708908632138,-500.0,0.00021917,2]
[315181126,1708908632147,-542.07004078,0.00021917,2]
[315181127,1708908632156,-238.27,0.00021927,2]
[315181128,1708908632165,-8363.0,0.00022,2]
[315181129,1708908632174,-550.52,0.00022014,2]
[315181130,1708908632183,-156.13,0.00022053,2]
[315181131,1708908632192,-206.0,0.00022271,2]
[315181132,1708908632201,-156.13,0.00022298,2]
[315181133,1708908632210,-156.13,0.00022543,2]
[315181134,1708908632219,-150.0,0.00022643,2]
[315181135,1708908632228,-156.13,0.00022788,2]
[315181136,1708908632237,-12430.69999226,0.000228,2]
[315181137,1708908632246,-619.9909,0.000228,2]
[315181138,1708908632255,-200.0,0.00022816,2]
[315181139,1708908632264,-5071.0908,0.00022898,2]
[315181140,1708908632273,-1000.0,0.000229,2]
[315181141,1708908632282,-244.24766075,0.000229,2]
[315181142,1708908632290,-1036.7703135,0.000229,2]
[315181143,1708908632299,-244.81070286,0.000229,2]
[315181144,1708908632309,-219.31940054,0.000229,4]
[315181145,1708908632318,-1037.35365008,0.000229,2]
[315181146,1708908632327,-441.79849124,0.000229,2]
[315181147,1708908632336,-542.71143982,0.000229,2]
[315181148,1708908632345,-243.1870291,0.000229,2]
[315181149,1708908632354,-800.0,0.00022959,2]
[315181150,1708908632363,-1036.77031347,0.00022991,2]
[315181151,1708908632373,-4171.05022636,0.00022998,2]
[315181152,1708908632382,-178.31703478,0.00022998,2]
[315181153,1708908632391,-151.022609,0.00022998,3]
[315181154,1708908632409,-151.022609,0.00022998,3]
[315181155,1708908632420,-151.022609,0.00022998,3]
[315181156,1708908632430,-151.022609,0.00022998,3]
[315181157,1708908632439,-151.022609,0.00022998,3]
[315181159,1708908632449,-151.022609,0.00022998,3]
[315181161,1708908632458,-151.022609,0.00022998,3]
[315181163,1708908632467,-151.022609,0.00022998,3]
[315181165,1708908632477,-151.022609,0.00022998,3]
[315181167,1708908632486,-151.022609,0.00022998,3]
[315181169,1708908632495,-151.022609,0.00022998,3]
[315181171,1708908632504,-151.022609,0.00022998,3]
[315181173,1708908632514,-151.022609,0.00022998,3]
[315181174,1708908632523,-151.022609,0.00022998,3]
[315181175,1708908632532,-151.022609,0.00022998,3]
[315181176,1708908632542,-151.022609,0.00022998,3]
[315181177,1708908632551,-151.022609,0.00022998,3]
[315181178,1708908632562,-151.022609,0.00022998,3]
[315181179,1708908632572,-151.022609,0.00022998,3]
[315181180,1708908632581,-151.022609,0.00022998,3]
[315181181,1708908632591,-151.022609,0.00022998,3]
[315181182,1708908632600,-151.022609,0.00022998,3]
[315181183,1708908632610,-151.022609,0.00022998,3]
[315181184,1708908632619,-151.022609,0.00022998,3]
[315181185,1708908632628,-151.022609,0.00022998,3]
[315181186,1708908632637,-151.022609,0.00022998,3]
[315181187,1708908632646,-151.022609,0.00022998,3]
[315181188,1708908632656,-151.022609,0.00022998,3]
[315181189,1708908632665,-151.022609,0.00022998,3]
[315181190,1708908632674,-151.022609,0.00022998,3]
[315181191,1708908632683,-151.022609,0.00022998,3]
[315181192,1708908632692,-151.022609,0.00022998,3]
[315181193,1708908632702,-151.022609,0.00022998,3]
[315181194,1708908632710,-151.022609,0.00022998,3]
[315181195,1708908632720,-151.022609,0.00022998,3]
[315181196,1708908632729,-151.022609,0.00022998,3]
[315181197,1708908632738,-151.022609,0.00022998,3]
[315181198,1708908632747,-151.022609,0.00022998,3]
[315181199,1708908632757,-151.022609,0.00022998,3]
[315181200,1708908632766,-151.022609,0.00022998,3]
[315181201,1708908632775,-151.022609,0.00022998,3]
[315181202,1708908632785,-151.022609,0.00022998,3]
[315181203,1708908632795,-151.022609,0.00022998,3]
[315181204,1708908632804,-151.022609,0.00022998,3]
[315181205,1708908632814,-151.022609,0.00022998,3]
[315181206,1708908632823,-151.022609,0.00022998,3]
[315181207,1708908632832,-151.022609,0.00022998,3]
[315181208,1708908632841,-151.022609,0.00022998,3]
[315181209,1708908632850,-151.022609,0.00022998,3]
[315181210,1708908632861,-151.022609,0.00022998,3]
[315181211,1708908632871,-151.022609,0.00022998,3]
[315181212,1708908632882,-151.022609,0.00022998,3]
[315181213,1708908632891,-151.022609,0.00022998,3]
[315181214,1708908632900,-151.022609,0.00022998,3]
[315181215,1708908632911,-151.022609,0.00022998,3]
[315181216,1708908632920,-157.022609,0.00022998,3]
[315181217,1708908632929,-157.022609,0.00022998,3]
[315181218,1708908632938,-157.022609,0.00022998,3]
[315181219,1708908632949,-157.022609,0.00022998,3]
[315181220,1708908632958,-157.022609,0.00022998,3]
[315181221,1708908632967,-157.022609,0.00022998,3]
[315181222,1708908632976,-157.022609,0.00022998,3]
[315181223,1708908632985,-157.022609,0.00022998,3]
[315181224,1708908632994,-157.022609,0.00022998,3]
[315181225,1708908633003,-157.022609,0.00022998,3]
[315181226,1708908633013,-157.022609,0.00022998,3]
[315181227,1708908633022,-157.022609,0.00022998,3]
[315181228,1708908633030,-157.022609,0.00022998,3]
[315181229,1708908633039,-8393.8850106,0.00022998,2]
[315181230,1708908633048,-41614.0906955,0.00022998,2]
[315181231,1708908633057,-502.97095215,0.00022999,2]
[315181232,1708908633067,-193.86263835,0.00022999,2]
[315181233,1708908633076,-193.86263835,0.00022999,2]
[315181234,1708908633085,-500.0,0.00022999,2]
[315181235,1708908633095,-193.86263835,0.00022999,2]
[315181236,1708908633104,-500.0,0.00022999,2]
[315181237,1708908633112,-156.54641185,0.00022999,2]
[315181238,1708908633125,-500.0,0.00022999,2]
[315181239,1708908633134,-500.0,0.00022999,2]
[315181240,1708908633143,-500.0,0.00022999,2]
[315181241,1708908633152,-226.82,0.00022999,2]
[315181242,1708908633161,-512.66,0.00022999,2]
[315181243,1708908633171,-500.0,0.00022999,2]
[315181244,1708908633179,-500.0,0.00022999,2]
[315181245,1708908633189,-500.0,0.00022999,2]
[315181246,1708908633198,-500.0,0.00022999,2]
[315181247,1708908633208,-500.0,0.00022999,2]
[315181248,1708908633217,-500.0,0.00022999,2]
[315181249,1708908633226,-500.0,0.00022999,2]
[315181250,1708908633235,-347.99,0.00022999,2]
[315181251,1708908633244,-500.0,0.00022999,2]
[315181252,1708908633254,-500.0,0.00022999,2]
[315181253,1708908633263,-500.0,0.00022999,2]
[315181254,1708908633272,-193.86263835,0.00022999,2]
[315181255,1708908633541,-500.0,0.00022999,2]
[315181256,1708908633551,-500.0,0.00022999,2]
[315181257,1708908633560,-500.0,0.00022999,2]
[315181258,1708908633570,-500.0,0.00022999,2]
[315181259,1708908633579,-280.3,0.00022999,2]
[315181260,1708908633589,-500.0,0.00022999,2]
[315181261,1708908633598,-500.0,0.00022999,2]
[315181262,1708908633607,-500.0,0.00022999,2]
[315181263,1708908633616,-500.0,0.00022999,2]
[315181264,1708908633625,-500.0,0.00022999,2]
[315181265,1708908633635,-500.0,0.00022999,2]
[315181266,1708908633644,-481.43,0.00022999,2]
[315181267,1708908633654,-500.0,0.00022999,2]
[315181268,1708908633663,-500.0,0.00022999,2]
[315181269,1708908633672,-343.7,0.00022999,2]
[315181270,1708908633681,-500.0,0.00022999,2]
[315181271,1708908633690,-500.0,0.00022999,2]
[315181272,1708908633699,-500.0,0.00022999,2]
[315181273,1708908633709,-500.0,0.00022999,2]
[315181274,1708908633718,-500.0,0.00022999,2]
[315181275,1708908633727,-500.0,0.00022999,2]
[315181276,1708908633735,-500.0,0.00022999,2]
[315181277,1708908633745,-500.0,0.00022999,2]
[315181278,1708908633753,-500.0,0.00022999,2]
[315181279,1708908633762,-307.91,0.00022999,2]
[315181280,1708908633772,-500.0,0.00022999,2]
[315181281,1708908633780,-1000.0,0.00022999,2]
[315181282,1708908633790,-30752.14135722,0.00023,2]
[315181283,1708908634003,-26184.60464025,0.00023,2]
[315181284,1708908634014,-784.17302211,0.00023,2]
[315181285,1708908634027,-584.20652084,0.00023,2]
[315181286,1708908634043,-322.16141251,0.00023,2]
[315181287,1708908634054,-389.16798515,0.00023,2]
[315181288,1708908634066,-5184.9016,0.00023,2]
[315181289,1708908634077,-1288.64349942,0.00023,2]
[315181290,1708908634088,-604.7260143,0.00023,2]
[315181291,1708908634099,-13469.51743803,0.00023,2]
[315181292,1708908634110,-667.61891395,0.00023,2]
[315181293,1708908634121,-308.807424,0.00023,2]
[315181294,1708908634136,-680.20694223,0.00023,2]
[315181295,1708908634148,-937.47454614,0.00023,2]
[315181296,1708908634158,-2150.45561075,0.00023,2]
[315181297,1708908634196,-11713.66116536,0.00023,2]
[315181298,1708908634207,-2005.46786835,0.00023,2]
[315181299,1708908634231,-9396.69471139,0.00023,2]
[315181300,1708908634244,-5424.64028088,0.00023,2]
[315181301,1708908634260,-6971.34877776,0.00023,2]
[315181302,1708908634273,-1314.39513694,0.00023,2]
[315181303,1708908634286,-716.91924502,0.00023,2]
[315181304,1708908634297,-83896.74885914,0.00023,2]
[315181305,1708908634310,-1495.26191086,0.00023,2]
[315181306,1708908634322,-27731.57778936,0.00023,2]
[315181307,1708908634333,-3969.97678967,0.00023,2]
[315181311,1708908639372,-419.14246012,0.00022999,2]
[315181312,1708908639382,-24798.53884505,0.00023,4]
[315181313,1708908639393,-31585.31949856,0.00023,4]
[315181314,1708908639485,-1720.88242999,0.00023,4]
[315181315,1708908639546,-414.25048202,0.00023,4]
[315181420,1708908640574,-1358.27907488,0.00023,4]
[315181423,1708908640585,-1718.78000001,0.00023,4]
[315181435,1708908640692,-516.81,0.00023,4]
[315181914,1708908645111,-0.01045796,0.000229,2]
[315181917,1708908645122,-977.01769193,0.000229,2]
[315181927,1708908645207,-4022.97185011,0.000229,2]
[315181929,1708908645217,-349.28538344,0.00022999,2]
[315181931,1708908645226,-95024.2682391,0.00023,4]
[315181933,1708908645236,-3059.44603849,0.00023,4]
[315181936,1708908645246,-20368.22032744,0.00023,4]
[315181938,1708908645258,-4422.81140246,0.00023,4]
[315181940,1708908645269,-16751.85427636,0.00023,4]
[315182014,1708908645930,-86750.85619958,0.00023,4]
[315182016,1708908645939,-162100.12184827,0.00023,2]
[315182022,1708908645989,-619.99095669,0.00023,2]
[315182035,1708908646105,-625.38245185,0.00023,2]
[315182230,1708908682147,180.81,9e-05,2]
[315182231,1708908682173,446.1625088,9e-05,2]
[315182235,1708909085801,683.07,0.00019626,2]
[315182236,1708909126393,3251.46,0.00022688,15]
[315182237,1708909130196,49624.8502919,0.00023,7]
[315182239,1708909444764,206.0,0.00019271,2]
[315182240,1708909564333,150.0,0.00018883,2]
[315182241,1708909564353,150.0,0.00018883,2]
[315182242,1708909564372,150.0,0.00018883,2]
[315182243,1708909564393,150.0,0.00018883,2]
[315182244,1708909564412,48.91,0.00018883,2]
[315182245,1708909586860,10000.0,0.0002312,30]
[315182246,1708909602606,555.66,0.0002312,30]
[315182247,1708909649809,151.0,0.00026626,120]
[315182248,1708909756120,-450.0,0.00019761,2]
[315182249,1708909756141,-160.91552753,0.000199,2]
[315182250,1708909756159,-150.0,0.00019999,2]
[315182251,1708909756178,-300.0,0.00019999,2]
[315182252,1708909756197,-10000.0,0.0002,2]
[315182253,1708909756222,-20000.0,0.0002,2]
[315182254,1708909756242,-150.0,0.00020147,2]
[315182255,1708909756263,-155.0,0.00020268,2]
[315182256,1708909756283,-485.9379771,0.00020269,2]
[315182257,1708909756302,-200.0,0.00020425,2]
[315182258,1708909756326,-174.78,0.0002053,2]
[315182259,1708909756347,-174.78,0.00020586,2]
[315182260,1708909756367,-174.78,0.00020643,2]
[315182261,1708909756387,-150.0,0.00020695,2]
[315182262,1708909756407,-174.78,0.00020699,2]
[315182263,1708909756426,-600.0,0.00020712,2]
[315182264,1708909756447,-150.0,0.00020723,2]
[315182265,1708909756468,-150.99,0.00020723,2]
[315182266,1708909756488,-1908.82649537,0.00020723,2]
[315182286,1708909832169,-1403.57398397,0.00020723,2]
[315182287,1708909832181,-792.99802951,0.00020723,2]
[315182288,1708909832226,-1235.51501189,0.00020723,2]
[315182289,1708909832239,-313.65647926,0.00020723,2]
[315182290,1708909832249,-792.13848036,0.00020741,2]
[315182291,1708909832279,-355.88151964,0.00020741,2]
[315182292,1708909832288,-1521.07,0.00020743,2]
[315182293,1708909832298,-174.78,0.00020755,2]
[315182294,1708909832306,-250.0,0.00020809,2]
[315182295,1708909832315,-135.52995589,0.00020811,2]
[315182296,1708909832339,-39.25004411,0.00020811,2]
[315182297,1708909832348,-609.39,0.00020828,2]
[315182298,1708909832357,-689.19,0.00020847,2]
[315182299,1708909832366,-1563.59402413,0.00020867,2]
[315182300,1708909832400,-436.40597587,0.00020867,2]
[315182301,1708909832410,-174.78,0.00020868,2]
[315182302,1708909832418,-174.78,0.00020924,2]
[315182303,1708909832427,-174.78,0.0002098,2]
[315182304,1708909832436,-200.0,0.00021003,2]
[315182305,1708909832445,-180.82,0.00021011,2]
[315182306,1708909832454,-174.78,0.00021037,2]
[315182307,1708909832463,-750.0,0.00021077,2]
[315182308,1708909832472,-174.78,0.00021093,2]
[315182309,1708909832481,-648.91,0.00021147,2]
[315182310,1708909832489,-174.78,0.00021149,2]
[315182311,1708909832498,-4377.37508824,0.00021159,2]
[315182312,1708909832519,-11777.97171176,0.00021159,2]
[315182313,1708909832527,-174.78,0.00021206,2]
[315182314,1708909832536,-174.78,0.00021262,2]
[315182315,1708909832546,-174.78,0.00021318,2]
[315182316,1708909832555,-152.0,0.00021333,3]
[315182317,1708909832563,-174.78,0.00021374,2]
[315182318,1708909832572,-174.78,0.00021431,2]
[315182320,1708909832581,-174.78,0.00021487,2]
[315182321,1708909832597,-174.78,0.00021543,2]
[315182322,1708909832610,-174.78,0.000216,2]
[315182323,1708909832620,-206.0,0.00021665,2]
[315182324,1708909832629,-390.61,0.00021679,2]
[315182325,1708909832638,-150.0,0.0002178,2]
[315182326,1708909832648,-3066.79,0.00021842,2]
[315182327,1708909832657,-309.42,0.00021842,2]
[315182328,1708909832666,-750.0,0.000219,2]
[315182329,1708909832675,-879.0304,0.000219,2]
[315182330,1708909832684,-207.6925,0.000219,2]
[315182331,1708909832693,-620.8175,0.000219,2]
[315182332,1708909832702,-23790.54628052,0.000219,2]
[315182333,1708909832714,-343.8,0.000219,2]
[315182338,1708909840916,-1152.76439389,0.000219,2]